Cogmind - Beta 15 @@@ ROGUE MODE // 2025.08.13 @ 13:53:37 Player: Andru7428 Result: Destroyed by 4S-9QN(R) with Subdweller Laser Performance ------------- Evolutions (0) 0 Regions Visited (2) 400 Robots Destroyed (23) 115 Value Destroyed (496) 496 Prototype IDs (2) 40 Alien Tech Used (0) 0 Bonus (0) 0 TOTAL SCORE: 1051 Bonus ------- None Cogmind --------- Core Integrity 0/250 Matter 300/300 Energy 250/250 System Corruption 0% Temperature Cool (6) Movement Treading (160) Location -10/Subcaves Parts ------- > --- POWER (1) -------- Ion Engine > --- PROPULSION (2) --- Light Treads Light Treads > --- UTILITY (2) ------ Heat Sink Large Storage Unit > --- WEAPON (2) ------- Hammer > --- INVENTORY (15) --- Subdweller Power Source Light Treads Light Treads Wheel Flightbrick Medium Matter Pod (100) Small Laser Small Laser Assault Rifle Heavy Assault Rifle Peak State ------------ > --- POWER ------------ Light Ion Engine > --- PROPULSION ------- Light Treads Light Treads > --- UTILITY ---------- Large Storage Unit Light Armor Plating > --- WEAPON ----------- Heavy Assault Rifle Light Cannon > --- INVENTORY -------- Ion Engine Light Treads Light Treads Light Treads Wheel Flightbrick Heat Sink Medium Matter Pod Small Laser Small Laser Assault Rifle Hammer [Rating: 12] Favorites ----------- Power Light Ion Engine Engine Light Ion Engine Propulsion Light Treads Treads Light Treads Utility Large Storage Unit Device Seismic Detector Storage Large Storage Unit Protection Light Armor Plating Weapon Light Cannon Energy Gun Small Laser Ballistic Gun Assault Rifle Ballistic Cannon Light Cannon Impact Weapon Hammer Build | -11 -10 -10 ------- Run | Yrd Mat Sub Slots Evolved . | . . . Power . | . . . Propulsion . | . . . Utility . | . . . Weapon . | . . . Parts Attached 19 | 7 6 6 Power 3 | 1 1 1 Engine 3 | 1 1 1 Core . | . . . Reactor . | . . . Propulsion 4 | 2 1 1 Treads 4 | 2 1 1 Leg . | . . . Wheel . | . . . Hover . | . . . Flight . | . . . Utility 6 | 2 2 2 Device 2 | 1 . 1 Storage 2 | 1 1 . Processor . | . . . Hackware . | . . . Protection 2 | . 1 1 Artifact . | . . . Weapon 6 | 2 2 2 Energy Gun 1 | . 1 . Energy Cannon . | . . . Ballistic Gun 3 | 2 . 1 Ballistic Cannon 1 | . 1 . Launcher . | . . . Special Weapon . | . . . Impact Weapon 1 | . . 1 Slashing Weapon . | . . . Piercing Weapon . | . . . Special Melee Weapon . | . . . Unidentified Prototypes . | . . . Parts Lost 6 | . 1 5 Power 1 | . . 1 Propulsion 1 | . . 1 Utility 3 | . 1 2 Weapon 1 | . . 1 Highest Loss Streak 4 | . 1 4 To Critical Strikes . | . . . Average Backups 9 | 5 9 11 Power . | . 1 . Propulsion 3 | 3 3 4 Utility 2 | . 2 2 Weapon 3 | 1 2 3 Tool/Special . | . . . Unused Backups 11 | . 5 6 Power . | . . . Propulsion 6 | . 3 3 Utility 1 | . . 1 Weapon 4 | . 2 2 Tool/Special . | . . . Average Slot Usage (%) 97 | . 97 98 Engine 13 | . 14 13 Treads 28 | . 28 28 Device 5 | . 8 . Storage 14 | . 14 14 Protection 7 | . 2 12 Energy Gun 2 | . 4 . Ballistic Gun 10 | . 14 5 Ballistic Cannon 10 | . 8 12 Impact Weapon 3 | . . 8 Peak Build Rating 12 | 7 8 12 Average Rating 8 | 5 7 10 On Entrance 5 | . 7 8 Naked Turns . | . . . Heaviest Build 32 | 14 31 32 Greatest Support 40 | 40 40 40 Greatest Overweight (x) . | . . . Average Overweight (x) . | . . . Largest Inventory Capacity 15 | 8 15 15 Average Capacity 12 | 7 12 15 Most Carried 15 | 8 12 15 Average Carried 10 | 6 9 13 Final Capacity 15 | 8 15 15 Final Carried 13 | 7 10 13 Class Distribution -------------------- 100% | Mutant Dominant Class ---------------- Mutant | -10/Materials Mutant | -10/Subcaves Resources | -11 -10 -10 ----------- Run | Yrd Mat Sub Matter Collected 770 | 294 330 146 Remotely . | . . . Salvage Created 700 | 61 397 242 Parts 53 | 9 29 15 Haulers Intercepted 2 | . 2 . Recyclers Shooed . | . . . Parts Field Recycled . | . . . Retrieved Matter . | . . . Parts Self-Destructed 12 | . . 12 Prevented . | . . . Kills | -11 -10 -10 ------- Run | Yrd Mat Sub Combat Hostiles Destroyed 17 | . 11 6 Melee 1 | . . 1 Guns 9 | . 6 3 Cannons 7 | . 5 2 Classes Destroyed 7 | 1 4 2 Tunneler 3 | 3 . . Hauler 2 | . 2 . Mechanic 1 | . 1 . Swarmer 7 | . 6 1 Grunt 5 | . 5 . Sentry 1 | . . 1 Subdweller 4 | . . 4 Best Kill Streak 3 | 2 3 3 Combat Bots Only 3 | . 3 3 Max Kills in Single Turn 1 | 1 1 1 Gunslinging . | . . . Exploded . | . . . Melee 1 | . . 1 Uniques/NPCs Destroyed . | . . . Combat | -11 -10 -10 -------- Run | Yrd Mat Sub Hostile Shots Fired 108 | . 59 49 Missed 28 | . 16 12 Hits 80 | . 43 37 Projectile 80 | . 43 37 Critical Strikes 2 | . . 2 Damage Taken 1299 | . 441 858 Core 265 | . 91 174 Absorbed by Shields . | . . . Core Remaining (%) 100 | 100 . . Volleys Fired 60 | 6 42 12 Largest 2 | 2 2 2 Hottest 60 | 40 60 53 Shots Fired 116 | 12 84 20 Gun 93 | 12 69 12 Cannon 23 | . 15 8 Launcher . | . . . Special . | . . . Kinetic 91 | 12 59 20 Thermal 25 | . 25 . Explosive . | . . . Electromagnetic . | . . . Robot Hit Streak 20 | 4 20 6 Robot Miss Streak 3 | 2 3 2 Penetration Max . | . . . Secondary Targets . | . . . Shots Hit Robots 93 | 7 60 26 Core Hits 36 | 4 22 10 Critical Kills . | . . . Critical Parts Destroyed . | . . . Critical Strikes . | . . . Melee Attacks 21 | . . 21 Impact 21 | . . 21 Slashing . | . . . Piercing . | . . . Sneak Attacks . | . . . Combat Hostiles . | . . . Follow-up Attacks . | . . . Damage Inflicted 1295 | 81 776 438 Guns 880 | 81 651 148 Cannons 202 | . 122 80 Explosions . | . . . Melee 210 | . . 210 Ramming 3 | . 3 . Kinetic 876 | 81 567 228 Thermal 206 | . 206 . Explosive . | . . . Electromagnetic . | . . . Impact 210 | . . 210 Slashing . | . . . Piercing . | . . . Highest Corruption . | . . . Average Corruption . | . . . Corruption Purged . | . . . Corruption Blocked . | . . . Overload Shots . | . . . Overflow Damage . | . . . Projectiles . | . . . Explosions . | . . . Melee . | . . . Knockbacks 3 | . . 3 Impact . | . . . Kinetic 3 | . . 3 Secondary . | . . . Self-Inflicted Damage . | . . . Shots . | . . . Rammed 1 | . 1 . Targets Rammed 2 | . 2 . Kicked . | . . . Crushed 1 | . 1 . Highest Temperature 75 | . 75 . Average Temperature 44 | . 44 . Received Heat Transfer 339 | . 153 186 Siege Activations . | . . . Martial Activations . | . . . Shielding Activations . | . . . Robots Disrupted . | . . . Combat Hostiles . | . . . Robots Corrupted . | . . . Combat Hostiles . | . . . Parts Fried . | . . . Impact Corruptions . | . . . Robots Melted . | . . . Combat Hostiles . | . . . Parts Melted 1 | . 1 . Heat Transferred 450 | . 450 . Parts Sabotaged . | . . . Parts Stolen . | . . . Parts Stripped . | . . . Power Chain Reactions . | . . . Alert | -11 -10 -10 ------- Run | Yrd Mat Sub Maximum Alert Level . | . . . Low Security (%) 100 | 100 100 . Level 1 . | . . . Level 2 . | . . . Level 3 . | . . . Level 4 . | . . . Level 5 . | . . . High Security . | . . . Max Security . | . . . Peak Influence 165 | 5 165 . Initial . | . . . Average 38 | . 47 . Influence Increases 445 | 15 390 40 Destroy 0b10 Robot/C 260 | . 220 40 Destroy 0b10 Robot/NC 30 | 15 15 . Destroy Leader 54 | . 54 . Successful Hack 25 | . 25 . Destroy Structure 1 | . 1 . Lose Combat Pursuer 75 | . 75 . Influence Decreases 445 | 15 303 127 Entered New Map 43 | . . 43 Time Decay 382 | 15 293 74 Lost Part 20 | . 10 10 Squads Dispatched 2 | . 2 . Investigation 1 | . 1 . Extermination . | . . . Reinforcement 1 | . 1 . Assault . | . . . Garrison . | . . . Intercept . | . . . Searches Triggered . | . . . Construction Impeded . | . . . Haulers Reinforced . | . . . Active Scanning Responses . | . . . Cargo Convoy Interrupts . | . . . Stealth | -11 -10 -10 --------- Run | Yrd Mat Sub Distress Signals 3 | . 3 . Communications Jammed . | . . . Distress Signals . | . . . Times Spotted 30 | . 23 7 Peak Tracking Total 5 | . 5 3 Tactical Retreats 3 | . 3 . Traps | -11 -10 -10 ------- Run | Yrd Mat Sub Traps Triggered 1 | . 1 . Indirectly . | . . . Trap Hack Attempts . | . . . Triggered . | . . . Disarmed . | . . . Reprogrammed . | . . . Reused . | . . . Traps Extracted . | . . . Installed . | . . . Triggered . | . . . Machines | -11 -10 -10 ---------- Run | Yrd Mat Sub Machines Disabled . | . . . Max in Single Turn . | . . . Machines Repaired . | . . . Machines Dismantled . | . . . Machines Sabotaged . | . . . Overloaded Fab Kills . | . . . Hacking | -11 -10 -10 --------- Run | Yrd Mat Sub Machines Accessed 3 | . 3 . Terminals 3 | . 3 . Fabricators . | . . . Repair Stations . | . . . Recycling Units . | . . . Scanalyzers . | . . . Garrison Access . | . . . Total Hacks 13 | . 13 . Successful 9 | . 9 . Failed 4 | . 4 . Catastrophic . | . . . Database Lockouts . | . . . Manual 12 | . 12 . Terminals 13 | . 13 . Fabricators . | . . . Repair Stations . | . . . Recycling Units . | . . . Scanalyzers . | . . . Garrison Access . | . . . Terminal Hacks 3 | . 3 . Robot Analysis 2 | . 2 . Prototype ID Bank 1 | . 1 . Fabricator Hacks . | . . . Repair Station Hacks . | . . . Recycling Unit Hacks . | . . . Scanalyzer . | . . . Garrison Access Hacks . | . . . Unauthorized Hacks 6 | . 6 . Terminals 6 | . 6 . Assimilate 1 | . 1 . Botnet 2 | . 2 . Skim 3 | . 3 . Fabricators . | . . . Repair Stations . | . . . Recycling Units . | . . . Scanalyzers . | . . . Garrison Access . | . . . Data Cores Recovered . | . . . Used . | . . . Hacking Detections 3 | . 3 . Full Trace Events . | . . . Feedback Events . | . . . Feedback Blocked . | . . . Robot Schematics Acquired . | . . . Robots Built . | . . . Authchips . | . . . Time . | . . . Total Robot Build Rating . | . . . Part Schematics Acquired . | . . . Parts Built . | . . . Authchips . | . . . Time . | . . . Total Part Build Rating . | . . . Parts Repaired . | . . . Time . | . . . Parts Recycled . | . . . Recycled Matter . | . . . Retrieved Matter . | . . . Retrieved Components . | . . . Parts Scanalyzed . | . . . Part Schematics Acquired . | . . . Parts Damaged . | . . . Bothacking | -11 -10 -10 ------------ Run | Yrd Mat Sub Used RIF Installer . | . . . Robots Hacked . | . . . Non-combat . | . . . Combat . | . . . Robot Hacks Applied . | . . . Relay Couplers Released . | . . . Fabnet Peak Effective % . | . . . Robots Rewired . | . . . Allies Hacked . | . . . Hacks Repelled . | . . . Allies | -11 -10 -10 -------- Run | Yrd Mat Sub Total Allies . | . . . Largest Group . | . . . Highest-Rated Group . | . . . Highest-Rated Ally . | . . . Total Orders . | . . . Ally Attacks . | . . . Total Damage . | . . . Kills . | . . . Allies Corrupted . | . . . Allies Melted . | . . . Intel | -11 -10 -10 ------- Run | Yrd Mat Sub Active Infowar (turns) 596 | 60 536 . Seismic 596 | 60 536 . Robot Analysis Total 2 | . 2 . Derelict Logs Recovered 1 | . . 1 Drone Launches . | . . . Drone Recoveries . | . . . Exploration | -11 -10 -10 ------------- Run | Yrd Mat Sub Turns Passed 1733 | 189 842 702 Spaces Moved 846 | 104 376 366 Core 11 | 11 . . Treads 835 | 93 376 366 Legs . | . . . Wheels . | . . . Hover . | . . . Flight . | . . . Fastest Speed 50 | 50 160 160 Average Speed 158 | 148 160 160 Slowest Speed 160 | 160 160 160 Overloaded Moves . | . . . Propulsion Burnouts . | . . . Robots Hopped . | . . . Potential Cave-ins . | . . . Cave-ins Triggered . | . . . Exploration Rate (%) 21 | 5 46 12 Regions Visited 2 Branch Regions 1 Pre-discovered Areas 1 | . . 1 Known Exits Taken . | . . . Unknown Exits Taken 2 | 1 1 . Scrap Searched . | . . . Spaces Dug 2 | . . 2 Terrain Destroyed 2 | . . 2 Melee 2 | . . 2 Projectile . | . . . AOE . | . . . Terrain Rammed . | . . . Walls Destroyed . | . . . Machines Disabled . | . . . Actions | -11 -10 -10 --------- Run | Yrd Mat Sub Total 1085 | 126 534 425 Wait 106 | . 92 14 Move 844 | 103 375 366 Hop . | . . . Pick Up 23 | 10 9 4 Fast Attach 4 | 4 . . Attach 8 | 3 1 4 Detach . | . . . Swap 9 | . 5 4 Drop 8 | . 8 . Fire 60 | 6 42 12 Melee 21 | . . 21 Ram . | . . . Kick . | . . . Crush 2 | . 2 . Escape Stasis . | . . . Rewire . | . . . Trap . | . . . Miscellaneous . | . . . Route ------- -11/Scrapyard -10/Materials (discovered 3 exits: [*Mat] / [*Min] / [*Sub]) -10/Subcaves History --------- Turn | Location | Event 15 | -11/Scrapyard | Discovered new exit (range 15) 190 | -11/Scrapyard | Entered Materials 344 | -10/Materials | Build established: Mutant 621 | -10/Materials | Discovered new exit (range 16) 847 | -10/Materials | Discovered new exit (range 16) 1014 | -10/Materials | Discovered new exit (range 5) 1032 | -10/Materials | Entered Subcaves 1033 | -10/Subcaves | Approached by a straggling Scientist 1222 | -10/Subcaves | A Subdweller sparked back to life 1222 | -10/Subcaves | A Subdweller sparked back to life 1222 | -10/Subcaves | A Subdweller sparked back to life 1225 | -10/Subcaves | Core integrity fell below 50% 1257 | -10/Subcaves | Found Prototype Flight Unit 1315 | -10/Subcaves | Learned location of Storage (-7) 1661 | -10/Subcaves | Core integrity fell below 20% 1716 | -10/Subcaves | Lost 4 parts (1p1n1u1w) 1734 | -10/Subcaves | Destroyed by 4S-9QN(R) with Subdweller Laser Last Messages --------------- 01315_ Acquired derelict log, extracted data. World map updated: -7/Storage. 6C-ZJQ(c): "I think it's somewhere west of here" 01462_ FV-LF1(u) tweaks Twisted Machinery. 6C-ZJQ(c): "I think it's somewhere west of here" 6C-ZJQ(c): "I think it's somewhere northwest of here" 01599_ Acquired 10 matter. 6C-ZJQ(c): "I think it's somewhere northwest of here" 01673_ Lgt. Cannon destroyed. 01681_ Lgt. Treads destroyed. 01683_ Lgt. Armor Plating destroyed. 01685_ Lgt. Ion Engine destroyed. 6C-ZJQ(c): "I think it's somewhere northwest of here" 01699_ KL-USA(R) destroyed. 01702_ Acquired 20 matter. 01705_ Acquired Sub. Power Source. Map ----- +----------------------------------------------------+ | ?????????????????????????????????????????????????? | | ?????????????????????????????????????????????????? | | ?????????????????????????????????????????????????# | | ????????????????????????????????????????????????## | | ????????????????????????????????????????????????# | | ????????????????????????????????????????????????# | | ????????????????????????????????????????????????# | | ????????????????????????????????????????????????# | | ????????????????????????????????????????????????#" | | ????????????????????????????????????????????????# | | ????????????????????????????????????????????????# | | ???????????????????????????????????????????????## | | ???????????????????????????????????????????????#"# | | ???????????????????????????????????????????????## | | ?????????????? ????????????#####??????????##### | | ?????????????? ???????????# ####????#### | | ????????????? ??????????# ###### | | ????????????? ##????????# ## ## | | ????????????# #???????# #?## ## | | ????????????# % % #??????## ##?# ## ## | | ????????????# % ##????# #??# #### | | ?????????????# % ###?# ##?# ##?# | | ????????????## ### ### # ### | | ????????????# % ## # #?# | | ?????????????????# R " " "" # #### | | ?????????????????# @ "c## " ######??## | | ?????????????????# ! "###"" ##????????# | | ???????????????# # &% " #""" #????????# | | ???????????????## #### "" #???????# ? | | ????????????????## #??# ##???????#?? | | ?????????????????# ### #??##"### ##??????????? | | ?????????????????## ?? #???###?####???????????? | | ?????????????????# ??# ??????????????????????? | | ???????????????? ???## ??????????????????????? | | ??????????????? ????? #??????????????????????? | | ?????????????? ?????? ???????????????????????? | | ??????????????# ??????? ???????????????????????? | | ??????????????????????? ???????????????????????? | | ?????????????????????? ???????????????????????? | | ??????????????????????? ???????????????????????? | | ??????????????????????? ???????????????????????? | | ?????????????????????????????????????????????????? | | ?????????????????????????????????????????????????? | | ?????????????????????????????????????????????????? | | ?????????????????????????????????????????????????? | | ?????????????????????????????????????????????????? | | ?????????????????????????????????????????????????? | | ?????????????????????????????????????????????????? | | ?????????????????????????????????????????????????? | | ?????????????????????????????????????????????????? | +----------------------------------------------------+ Best States ------------- Heat Dissipation 35 Energy Generation 10 Energy Capacity 250 Matter Stores 300 Matter Capacity 300 Sight Range 16 Terrain Scan Density 10 Armor Coverage 150 Evasion (%) 40 Recoil Reduction 2 Item Schematics ----------------- None Robot Schematics ------------------ None Fabricated ------------ Nothing Repaired ---------- Nothing Alien Tech Used ----------------- None Achievements -------------- None Challenges ------------ None Game ------ Seed ExoskeletonRapidTorch Manual? 0 Play Time 00:11:38 Cumulative 381.4 hours Start 2025.08.13 @ 13:44:29 End 2025.08.13 @ 13:53:37 Sessions 1 Manual Loads 0 Difficulty Rogue Special Mode None Game No. 236 Rogue 236 Adventurer 0 Explorer 0 Win Type - Total 8 Types 8/0/0/0/0/0/0/0/0/0 Lore% 79 Gallery% 75 Achievement% 68 Wizard Run 0 Options --------- Layout 1 ASCII 0 Keyboard 1 Movement Numpad Keybinds 0 Fullscreen 2 Font 24/Smallcaps Map View 50x35 Zoom Use 0% Tactical HUD 1 Map Filters NONE Filters NONE Steam 1 RUN: ec6b0ee0-dfb7-485e-bfb2-137734c1a09b